bitfinex-derivatives/quotes_SOLF0:USTF0_20250911
["timestamp","ask_amount","ask_price","bid_price","bid_amount"]
[1757613688174,7.2,227.47,227.41,107.32]
[1757613690676,7.46,227.57,227.42,0.33]
[1757613691265,7.46,227.57,227.47,0.02778743]
[1757613691872,3.41058576,227.59,227.47,0.02778743]
[1757613691873,7.46,227.62,227.47,15.86778743]
[1757613692073,3.41058576,227.63,227.47,15.86778743]
[1757613692269,7.46,227.62,227.47,15.84]
[1757613692576,7.46,227.62,227.53,0.03092592]
[1757613695775,7.46,227.59,227.53,0.03092592]
[1757613707886,7.46,227.59,227.53,0.36092592]
[1757613712987,7.46,227.59,227.53,0.03092592]
[1757613714191,7.46,227.71,227.53,0.37092592]
[1757613714392,7.46,227.66,227.53,0.37092592]
[1757613714686,7.46,227.66,227.51,107.24]
[1757613714687,7.46,227.66,227.56,0.34]
[1757613714989,7.46,227.66,227.57,0.0308954]
[1757613716393,7.46,227.66,227.58,0.34]
[1757613717689,2.17912045,227.69,227.58,62.34]
[1757613717889,6.93,227.68,227.58,0.34]
[1757613719994,6.93,227.68,227.57,0.0308954]
[1757613721798,6.93,227.65,227.57,0.0308954]
[1757613722192,6.93,227.65,227.55,1.44]
[1757613722391,6.93,227.65,227.59,0.03122101]
[1757613728303,6.93,227.62,227.59,0.03122101]
[1757613728494,2.17912045,227.63,227.59,0.03122101]
[1757613729303,6.93,227.62,227.59,0.03122101]
[1757613729804,2.17912045,227.63,227.59,0.03122101]
[1757613730406,6.93,227.62,227.59,0.03122101]
[1757613730904,6.93,227.62,227.59,0.37122101]
[1757613731503,6.93,227.65,227.59,0.37122101]
[1757613737805,6.93,227.65,227.59,0.03122101]
[1757613738307,6.93,227.63,227.59,0.03122101]
[1757613738712,6.93,227.63,227.54,169.18]
[1757613738910,2.17912045,227.64,227.59,0.02903872]
[1757613739108,6.93,227.63,227.59,0.02903872]
[1757613739313,2.17912045,227.64,227.59,0.02903872]
[1757613739907,6.93,227.63,227.59,0.02903872]
[1757613740107,2.17912045,227.64,227.59,0.02903872]
[1757613740303,6.93,227.63,227.59,0.02903872]
[1757613741412,2.17912045,227.64,227.59,0.02903872]
[1757613741613,6.93,227.63,227.59,0.02903872]
[1757613741812,6.93,227.72,227.59,0.02903872]
[1757613742108,2.17912045,227.65,227.54,169.18]
[1757613742514,6.93,227.64,227.63,0.03046693]
[1757613742711,6.93,227.65,227.54,169.18]
[1757613742912,6.93,227.65,227.61,0.0279262]
[1757613743905,2.17912045,227.66,227.61,0.0279262]
[1757613744111,6.93,227.65,227.61,0.0279262]
[1757613744410,2.17912045,227.66,227.61,0.0279262]
[1757613744610,6.93,227.64,227.61,0.0279262]
[1757613744811,2.17912045,227.66,227.61,0.0279262]
[1757613745215,6.93,227.65,227.61,0.0279262]
[1757613745416,2.17912045,227.66,227.61,0.0279262]
[1757613745809,6.93,227.65,227.61,0.0279262]
[1757613746209,2.17912045,227.66,227.61,0.0279262]
[1757613746409,6.93,227.65,227.61,0.0279262]
[1757613746705,2.17912045,227.66,227.61,0.0279262]
[1757613747113,6.93,227.65,227.61,0.0279262]
[1757613747309,2.17912045,227.66,227.61,0.0279262]
[1757613747506,7.17,227.65,227.61,0.0279262]
[1757613747714,2.17912045,227.66,227.61,0.0279262]
[1757613747915,7.17,227.65,227.61,0.0279262]
[1757613748118,2.17912045,227.66,227.61,0.0279262]
[1757613748814,7.17,227.65,227.61,0.0279262]
[1757613749709,2.17912045,227.66,227.61,0.0279262]
[1757613749916,7.17,227.65,227.61,0.0279262]
[1757613750121,7.17,227.68,227.61,0.3679262]
[1757613750623,7.17,227.68,227.61,0.34]
[1757613750815,7.17,227.68,227.62,0.03328462]
[1757613771742,7.17,227.68,227.63,0.33]
[1757613772041,7.17,227.73,227.62,0.36328462]
[1757613772241,7.17,227.71,227.62,0.36328462]
[1757613776745,3.07086057,227.7,227.62,0.36328462]
[1757613777046,7.17,227.75,227.62,0.36328462]
[1757613777349,7.17,227.73,227.62,0.33]
[1757613777644,6.91,227.71,227.66,0.03345509]
[1757613777950,6.91,227.69,227.66,0.03345509]
[1757613779342,6.91,227.75,227.66,0.03345509]
[1757613779647,6.91,227.73,227.66,0.03345509]
[1757613779846,6.91,227.71,227.66,0.03345509]
[1757613783049,6.91,227.69,227.66,0.03345509]
[1757613784153,6.91,227.75,227.66,0.03345509]
[1757613784351,6.91,227.73,227.66,0.03345509]
[1757613784547,6.91,227.71,227.66,0.03345509]
[1757613785452,6.91,227.69,227.66,0.03345509]
[1757613786053,6.91,227.75,227.66,0.03345509]
[1757613786250,6.91,227.73,227.66,0.03345509]
[1757613786553,6.91,227.71,227.66,0.03345509]
[1757613786755,6.91,227.69,227.66,0.03345509]
[1757613787054,6.91,227.7,227.66,0.03345509]
[1757613788353,0.02859743,227.71,227.66,0.03345509]
[1757613788548,6.91,227.69,227.66,0.03345509]
[1757613788853,0.02859743,227.71,227.66,0.03345509]
[1757613789152,6.91,227.69,227.66,0.03345509]
[1757613789453,6.91,227.7,227.66,0.03345509]
[1757613790356,3.0704147,227.69,227.66,0.03345509]
[1757613790554,6.91,227.68,227.66,0.03345509]
[1757613791353,6.91,227.7,227.66,0.03345509]
[1757613791549,6.91,227.68,227.66,0.03345509]
[1757613791754,6.91,227.7,227.66,0.03345509]
[1757613792055,3.07083772,227.69,227.66,0.03345509]
[1757613792357,6.91,227.67,227.66,0.03345509]
[1757613793152,9.9815017,227.67,227.66,0.03345509]
[1757613793352,6.91,227.67,227.66,0.03345509]
[1757613794157,9.98166524,227.67,227.66,0.03345509]
[1757613794453,9.98166524,227.67,227.59,62.0]
[1757613794652,16.84607759,227.66,227.56,0.33]
[1757613794958,6.91,227.64,227.56,0.33]
[1757613795157,6.91,227.62,227.56,0.33]
[1757613795661,6.91,227.62,227.53,0.36]
[1757613795856,3.10184148,227.61,227.53,0.36]
[1757613796152,6.91,227.6,227.53,0.36]
[1757613796453,0.03049513,227.61,227.49,58.95579697]
[1757613796757,6.91,227.59,227.49,58.95579697]
[1757613796963,0.03049513,227.61,227.49,58.95579697]
[1757613797255,6.91,227.59,227.49,58.95579697]
[1757613797456,6.91,227.56,227.49,58.95579697]
[1757613797646,6.91,227.56,227.49,120.95579697]
[1757613802765,0.0329312,227.57,227.5,0.36]
[1757613802968,0.0329312,227.57,227.49,120.59579697]
[1757613802969,0.0329312,227.57,227.52,0.36]
[1757613803558,6.91,227.56,227.52,0.36]
[1757613803857,6.91,227.56,227.51,107.1]
[1757613804059,0.0329312,227.57,227.51,107.1]
[1757613804259,6.9429312,227.57,227.51,107.1]
[1757613808860,7.23,227.56,227.43,0.37]
[1757613809166,3.40246543,227.58,227.44,17.16]
[1757613809561,0.02793665,227.52,227.45,0.37]
[1757613811070,0.02793665,227.52,227.45,62.37]
[1757613811673,0.02793665,227.52,227.46,0.37]
[1757613820483,0.02793665,227.52,227.47,0.37]
[1757613820781,0.02793665,227.52,227.45,0.37]
[1757613821180,0.02793665,227.52,227.45,2.55035197]
[1757613821388,0.02793665,227.52,227.46,0.37]
[1757613822080,0.02793665,227.52,227.44,30.17491249]
[1757613822081,0.02793665,227.52,227.49,0.37]
[1757613822484,0.02793665,227.52,227.51,2.55035197]
[1757613823378,0.02793665,227.52,227.45,0.37]
[1757613823687,0.02793665,227.52,227.45,62.37]
[1757613823986,0.02793665,227.52,227.45,64.55035197]
[1757613824782,0.02793665,227.52,227.46,0.37]
[1757613829192,7.23,227.51,227.42,2.55035197]
[1757613829387,7.23,227.51,227.42,0.37]
[1757613831596,7.23,227.51,227.42,2.18035197]
[1757613831797,7.23,227.51,227.43,0.37]
[1757613837195,7.23,227.51,227.45,0.37]
[1757613839404,7.01793665,227.52,227.45,0.37]
[1757613840195,0.02793665,227.52,227.45,0.37]
[1757613840397,0.02793665,227.52,227.49,0.37]
[1757613840896,0.02793665,227.52,227.47,2.18035197]
[1757613841090,0.02793665,227.52,227.49,0.37]
[1757613843103,7.01793665,227.52,227.49,0.37]
[1757613846204,0.02793665,227.52,227.46,2.18035197]
[1757613846399,0.02793665,227.52,227.48,0.37]
[1757613846595,0.02793665,227.52,227.46,2.18035197]
[1757613846801,7.01793665,227.52,227.48,0.37]
[1757613849306,0.02793665,227.52,227.46,2.18035197]
[1757613849510,0.02793665,227.52,227.49,2.18035197]
[1757613849706,7.01793665,227.52,227.49,2.55035197]
[1757613850905,7.01793665,227.52,227.49,2.18035197]
[1757613851208,0.00471604,227.52,227.51,0.37]
[1757613855009,0.00471604,227.52,227.49,2.18035197]
[1757613855815,0.00471604,227.52,227.5,0.35]
[1757613856013,0.00471604,227.52,227.49,2.18035197]
[1757613856414,0.00471604,227.52,227.5,0.35]
[1757613859016,6.99471604,227.52,227.48,109.64363945]
[1757613859514,6.99471604,227.52,227.49,0.35]
[1757613860218,0.00471604,227.52,227.49,0.35]
[1757613862309,0.00471604,227.52,227.51,2.18035197]
[1757613863518,0.00471604,227.52,227.51,2.53035197]
[1757613864315,0.00471604,227.52,227.51,107.08]
[1757613864713,6.99,227.65,227.51,107.52]
[1757613864914,6.99,227.77,227.61,2.18035197]
[1757613865220,40.36682159,227.79,227.67,2.18035197]
[1757613865221,6.99,227.75,227.67,2.18035197]
[1757613865513,6.99,227.73,227.67,2.18035197]
[1757613866912,6.99,227.73,227.61,0.35]
[1757613867113,2.18035197,227.76,227.64,2.18035197]
[1757613867314,13.51866245,227.75,227.64,2.18035197]
[1757613867516,7.14,227.73,227.64,2.18035197]
[1757613870920,7.14,227.73,227.67,2.18035197]
[1757613873619,7.14,227.73,227.55,0.36]
[1757613873820,7.14,227.72,227.6,2.18035197]
[1757613874524,9.32035197,227.72,227.6,2.18035197]
[1757613876328,7.14,227.72,227.58,0.36]
[1757613876623,7.14,227.72,227.57,62.0]
[1757613876829,7.14,227.74,227.55,3.40251527]
[1757613877429,7.14,227.72,227.55,3.40251527]
[1757613877729,7.14,227.74,227.55,3.40251527]
[1757613877926,7.14,227.72,227.56,0.36]
[1757613879426,7.14,227.74,227.52,0.36]
[1757613879630,7.14,227.66,227.52,0.36]
[1757613879831,7.14,227.66,227.49,3.40251527]
[1757613880029,7.14,227.64,227.53,3.40251527]
[1757613880227,7.14,227.64,227.54,0.36]
[1757613882831,7.14,227.64,227.55,62.0]
[1757613883029,7.14,227.72,227.55,62.0]
[1757613883332,6.507655,227.71,227.55,62.0]
[1757613883532,7.14,227.69,227.55,62.0]
[1757613883723,7.3,227.73,227.55,62.0]
[1757613883925,9.83502157,227.72,227.55,62.0]
[1757613884130,6.50974802,227.71,227.55,62.0]
[1757613884333,6.50974802,227.7,227.55,62.0]
[1757613884532,7.14,227.68,227.55,62.0]
[1757613884733,7.3,227.73,227.55,62.0]
[1757613885027,7.14,227.71,227.55,62.0]
[1757613885225,6.51201616,227.7,227.55,62.0]
[1757613885431,7.14,227.68,227.55,62.0]
[1757613885631,7.3,227.73,227.55,62.0]
[1757613885837,7.14,227.71,227.55,62.0]
[1757613886137,7.14,227.69,227.55,62.0]
[1757613886337,7.3,227.73,227.55,62.0]
[1757613886536,9.84108277,227.72,227.55,62.0]
[1757613886745,9.84108277,227.71,227.55,62.0]
[1757613886938,7.14,227.69,227.55,62.0]
[1757613887237,7.14,227.66,227.55,62.0]
[1757613887435,7.14,227.66,227.56,0.36]
[1757613893744,7.14,227.69,227.52,0.37]
[1757613893943,7.14,227.67,227.52,0.37]
[1757613896646,7.14,227.69,227.54,0.37]
[1757613896853,7.14,227.67,227.54,0.37]
[1757613904356,3.06768168,227.66,227.54,0.37]
[1757613904555,6.95,227.65,227.54,0.37]
[1757613908268,6.95,227.65,227.57,0.02835219]
[1757613909655,6.53287629,227.64,227.57,0.02835219]
[1757613909858,6.95,227.63,227.57,0.02835219]
[1757613910459,6.95,227.61,227.57,0.02835219]
[1757613913568,6.95,227.65,227.57,0.02835219]
[1757613913767,6.95,227.63,227.57,0.02835219]
[1757613917665,3.40251527,227.7,227.57,0.02835219]
[1757613917666,6.95,227.61,227.57,0.02835219]
[1757613918071,6.95,227.59,227.57,0.02835219]
[1757613918268,3.40251527,227.66,227.57,0.02835219]
[1757613918269,6.95,227.65,227.57,0.02835219]
[1757613918471,6.95,227.63,227.57,0.02835219]
[1757613918772,6.95,227.61,227.57,0.02835219]
[1757613918959,6.95,227.59,227.57,0.02835219]
[1757613919164,6.95,227.65,227.57,0.02835219]
[1757613919370,6.95,227.63,227.57,0.02835219]
[1757613919572,6.95,227.61,227.57,0.02835219]
[1757613919766,6.95,227.59,227.45,65.59337937]
[1757613920069,6.95,227.57,227.45,58.65677023]
[1757613920367,6.95,227.61,227.45,58.65677023]
[1757613920670,6.95,227.59,227.45,58.65677023]
[1757613920869,6.53911488,227.6,227.45,58.65677023]
[1757613920870,6.95,227.57,227.45,58.65677023]
[1757613921070,6.95,227.54,227.46,62.0]
[1757613921468,6.95,227.54,227.47,0.4]
[1757613921971,0.03042215,227.55,227.47,0.4]
[1757613923659,0.03042215,227.55,227.48,107.2]
[1757613924572,0.03042215,227.55,227.48,169.2]
[1757613924772,0.03042215,227.55,227.48,169.18]
[1757613924972,0.03042215,227.55,227.48,62.0]
[1757613925166,0.03042215,227.55,227.48,169.18]
[1757613925568,0.03042215,227.55,227.49,0.4]
[1757613926663,0.03042215,227.55,227.5,0.02941732]
[1757613926860,0.03042215,227.55,227.51,0.4]
[1757613927466,0.03042215,227.55,227.53,0.4]
[1757613927669,0.03042215,227.55,227.54,107.62]
[1757613928073,0.03042215,227.55,227.54,108.06]
[1757613928775,0.03042215,227.55,227.54,170.06]
[1757613930376,0.03042215,227.55,227.54,169.62]
[1757613930577,0.03042215,227.55,227.54,107.2]
[1757613930874,0.03042215,227.55,227.54,107.64]
[1757613931473,0.03042215,227.55,227.54,108.08]
[1757613931671,0.03042215,227.55,227.54,107.64]
[1757613933571,0.03042215,227.55,227.54,169.64]
[1757613936272,0.03042215,227.55,227.54,171.81822334]
[1757613941782,0.03042215,227.55,227.54,169.64]
[1757613942178,0.03042215,227.55,227.51,0.4]
[1757613942487,7.37,227.54,227.52,107.22]
[1757613942676,0.03042215,227.55,227.52,107.22]
[1757613942876,7.37,227.54,227.52,107.22]
[1757613943389,0.03042215,227.55,227.53,0.4]
[1757613943687,0.03042215,227.55,227.54,0.4]
[1757613944685,0.03042215,227.55,227.52,107.62]
[1757613945685,0.03042215,227.55,227.53,0.4]
[1757613946388,0.03042215,227.55,227.52,107.22]
[1757613946685,7.40042215,227.55,227.52,107.62]
[1757613946887,0.03042215,227.55,227.52,107.62]
[1757613947687,7.37,227.54,227.52,107.22]
[1757613947887,0.03042215,227.55,227.52,107.22]
[1757613949087,7.37,227.54,227.52,107.22]
[1757613949290,0.03042215,227.55,227.52,107.22]
[1757613949988,0.03042215,227.55,227.53,0.4]
[1757613950490,0.03042215,227.55,227.52,107.22]
[1757613950687,7.37,227.54,227.52,107.22]
[1757613951384,0.03042215,227.55,227.52,107.62]
[1757613951584,0.03042215,227.55,227.53,0.4]
[1757613951777,0.03042215,227.55,227.52,107.22]
[1757613951982,0.03042215,227.55,227.52,107.62]
[1757613956690,0.03042215,227.55,227.52,107.22]
[1757613956993,0.03042215,227.55,227.52,107.62]
[1757613957290,0.03042215,227.55,227.52,107.22]
[1757613957497,0.03042215,227.55,227.54,0.39]
[1757613957791,0.03042215,227.55,227.5,62.02941732]
[1757613957996,7.54,227.54,227.5,0.02941732]
[1757613958592,3.45905151,227.53,227.44,103.55]
[1757613958792,2.20864549,227.55,227.44,103.16]
[1757613958993,7.54,227.53,227.44,103.16]
[1757613959195,2.20864549,227.55,227.44,103.16]
[1757613959389,7.54,227.53,227.44,103.16]
[1757613959686,2.20864549,227.55,227.44,103.16]
[1757613959892,7.54,227.53,227.44,103.16]
[1757613960093,2.20864549,227.55,227.44,103.16]
[1757613960289,7.54,227.53,227.44,103.16]
[1757613961002,2.20864549,227.55,227.44,103.16]
[1757613961202,7.54,227.53,227.44,103.16]
[1757613962501,2.20864549,227.55,227.44,103.16]
[1757613962700,7.54,227.53,227.44,103.16]
[1757613962903,2.20864549,227.55,227.41,0.39]
[1757613962904,7.54,227.51,227.41,0.39]
[1757613963198,7.54,227.48,227.41,26.5]
[1757613963402,7.54,227.48,227.37,2.56822334]
[1757613963607,7.57378264,227.48,227.38,39.62]
[1757613964101,7.54,227.47,227.38,39.62]
[1757613964299,7.54,227.47,227.37,66.39]
[1757613964504,0.03378264,227.48,227.37,66.39]
[1757613964704,7.54,227.47,227.37,66.39]
[1757613965906,2.17822334,227.46,227.33,0.39]
[1757613966102,2.17822334,227.43,227.33,0.39]
[1757613966309,7.54,227.42,227.33,0.39]
[1757613966505,0.0322085,227.4,227.33,0.39]
[1757613972013,0.0322085,227.4,227.33,62.39]
[1757613972602,0.0322085,227.4,227.33,0.39]
[1757613972810,7.54,227.39,227.33,0.39]
[1757613973808,7.54,227.39,227.32,40.92]
[1757613974109,0.0322085,227.4,227.32,40.92]
[1757613974410,2.17822334,227.37,227.25,0.39]
[1757613974614,7.54,227.36,227.25,0.39]
[1757613975016,0.03180498,227.33,227.25,0.39]
[1757613975312,7.54,227.32,227.25,0.39]
[1757613976108,7.54,227.32,227.24,59.86]
[1757613978115,7.54,227.32,227.21,0.39]
[1757613978319,2.17822334,227.31,227.21,0.39]
[1757613978611,7.54,227.3,227.21,0.39]
[1757613978815,7.54,227.27,227.16,0.76586192]
[1757613980007,7.54,227.27,227.16,1.15586192]
[1757613981207,7.54,227.27,227.16,0.39]
[1757613982808,7.54,227.27,227.15,107.62]
[1757613983118,2.17822334,227.28,227.15,107.62]
[1757613983310,7.54,227.27,227.15,107.62]
[1757613983514,7.54,227.22,227.15,107.62]
[1757613984116,7.54,227.22,227.15,108.01]
[1757613984826,0.0295116,227.23,227.16,0.39]
[1757613985022,0.0295116,227.23,227.17,0.39]
[1757613985417,0.0295116,227.23,227.2,0.39]
[1757613985617,9.428e-05,227.23,227.19,2.17822334]
[1757613985818,9.428e-05,227.23,227.22,2.17822334]
[1757613986023,9.428e-05,227.23,227.22,2.56822334]
[1757613988224,9.428e-05,227.23,227.22,0.39]
[1757613988418,7.08009428,227.23,227.16,2.60773131]
[1757613988825,7.08009428,227.23,227.16,64.60773131]
[1757613989321,9.428e-05,227.23,227.16,64.60773131]
[1757613991922,9.428e-05,227.23,227.16,62.42950797]
[1757613992219,9.428e-05,227.23,227.16,64.60773131]
[1757613992621,9.428e-05,227.23,227.16,2.60773131]
[1757613993122,9.428e-05,227.23,227.16,0.42950797]
[1757613993323,9.428e-05,227.23,227.16,2.60773131]
[1757613995116,9.428e-05,227.23,227.16,0.42950797]
[1757613995318,9.428e-05,227.23,227.16,2.60773131]
[1757613996417,9.428e-05,227.23,227.16,0.42950797]
[1757614002131,9.428e-05,227.23,227.16,0.02950797]
[1757614002332,9.428e-05,227.23,227.08,0.4]
[1757614002333,7.08,227.22,227.08,0.4]
[1757614002533,30.16,227.22,227.08,0.4]
[1757614003627,7.08,227.16,227.01,0.4]
[1757614004029,7.08,227.16,227.01,0.76637634]
[1757614004235,0.03101849,227.11,227.02,0.4]
[1757614005323,0.03101849,227.11,227.02,62.4]
[1757614005528,0.03101849,227.11,227.03,0.4]
[1757614005727,0.03101849,227.11,227.05,0.4]
[1757614009638,7.08,227.1,227.02,62.4]
[1757614009838,7.08,227.1,227.02,0.4]
[1757614010039,7.08,227.1,227.02,3.81541588]
[1757614012442,0.03101849,227.11,227.03,0.4]
[1757614012633,0.03101849,227.11,227.07,0.4]
[1757614012832,0.03101849,227.11,227.06,3.41541588]
[1757614013038,0.03101849,227.11,227.08,0.4]
[1757614014042,0.03101849,227.11,227.06,3.41541588]
[1757614014242,0.03101849,227.11,227.08,0.4]
[1757614015145,0.03101849,227.11,227.05,0.4]
[1757614016647,0.03101849,227.11,227.09,0.4]
[1757614016843,7.08,227.17,227.1,0.4]
[1757614017145,7.08,227.28,227.16,3.41541588]
[1757614017347,7.08,227.26,227.16,3.41541588]
[1757614017541,3.08621741,227.25,227.16,3.41541588]
[1757614018145,0.03237006,227.23,227.14,62.0]
[1757614018348,7.14,227.22,227.16,3.41541588]
[1757614019049,7.14,227.22,227.14,62.0]
[1757614019050,7.14,227.22,227.15,3.41541588]
[1757614020445,0.03237006,227.23,227.15,3.41541588]
[1757614020746,0.03237006,227.23,227.16,0.41]
[1757614021050,0.03237006,227.23,227.15,3.41541588]
[1757614021051,7.17237006,227.23,227.15,3.41541588]
[1757614022553,7.17237006,227.23,227.12,3.82541588]
[1757614023048,7.17237006,227.23,227.03,367.52898196]
[1757614023255,7.14,227.21,227.08,3.41541588]
[1757614023451,3.41541588,227.25,227.04,49.96541588]
[1757614023756,7.14,227.16,227.04,0.41]
[1757614024160,7.14,227.16,227.05,0.41]
[1757614024358,0.03335879,227.12,227.05,0.41]
[1757614024552,0.03335879,227.12,227.08,0.03135511]
[1757614024752,7.17335879,227.12,227.08,0.03135511]
[1757614025046,0.03335879,227.12,227.08,0.03135511]
[1757614025247,7.14,227.11,227.08,0.03135511]
[1757614026452,0.03335879,227.12,227.08,0.03135511]
[1757614026655,7.17335879,227.12,227.08,0.03135511]
[1757614026955,0.03335879,227.12,227.08,0.44135511]
[1757614027553,0.03335879,227.12,227.08,0.03135511]
[1757614027757,0.03335879,227.12,227.09,0.41]
[1757614028058,7.17335879,227.12,227.08,0.03135511]
[1757614028254,7.17335879,227.12,227.08,0.44135511]
[1757614028459,0.03335879,227.12,227.09,0.41]
[1757614031257,0.03335879,227.12,227.08,0.03135511]
[1757614031860,0.03335879,227.12,227.09,0.41]
[1757614033864,0.03335879,227.12,227.08,0.03135511]
[1757614034162,0.03335879,227.12,227.09,0.41]
[1757614034663,0.03335879,227.12,227.08,0.03135511]
[1757614035159,0.03335879,227.12,227.09,0.41]
[1757614035663,7.17335879,227.12,227.08,0.03135511]
[1757614036665,7.17335879,227.12,227.08,0.43135511]
[1757614036869,0.03335879,227.12,227.09,0.4]
[1757614037368,0.00385082,227.12,227.09,0.4]
[1757614038065,0.00385082,227.12,227.08,3.44677099]
[1757614038266,0.00385082,227.12,227.09,0.4]
[1757614038466,7.14,227.23,227.09,0.4]
[1757614039969,7.14,227.23,227.14,0.03330412]
[1757614048184,7.34,227.21,227.14,0.03330412]
[1757614051779,7.34,227.21,227.14,0.44330412]
[1757614057181,7.34,227.28,227.14,0.44330412]
[1757614057676,7.34,227.28,227.14,0.41]
[1757614057878,7.34,227.28,227.19,0.03367599]
[1757614059476,7.34,227.28,227.2,0.41]
[1757614059880,7.34,227.28,227.21,2.18508937]
[1757614060477,7.34,227.28,227.21,64.18508937]
[1757614061988,7.34,227.28,227.21,62.0]
[1757614063279,7.34,227.28,227.22,0.41]
[1757614064790,7.34,227.26,227.19,0.03367599]
[1757614065092,7.34,227.26,227.18,0.41]
[1757614065484,7.34,227.26,227.2,0.03353711]
[1757614067484,7.34,227.3,227.21,0.41]
[1757614067691,7.34,227.3,227.22,62.0]
[1757614069691,2.18508937,227.3,227.2,0.03353711]
[1757614069888,7.34,227.29,227.2,0.03353711]
[1757614073390,7.34,227.29,227.2,0.43353711]
[1757614073995,7.34,227.33,227.2,0.43353711]
[1757614074487,7.34,227.33,227.23,0.4]
[1757614075093,7.34,227.33,227.26,0.0286484]
[1757614076192,7.34,227.37,227.26,11.4686484]
[1757614076586,7.34,227.37,227.27,62.0]
[1757614077388,2.18508937,227.4,227.27,62.0]
[1757614077594,2.18508937,227.37,227.27,62.0]
[1757614077990,7.52,227.36,227.3,0.03354705]
[1757614080602,2.18508937,227.34,227.3,0.03354705]
[1757614080793,7.52,227.33,227.3,0.03354705]
[1757614080997,7.52,227.33,227.24,62.0]
[1757614081199,7.52,227.33,227.29,0.03381644]
[1757614081793,2.18508937,227.34,227.29,0.03381644]
[1757614081996,7.52,227.33,227.29,0.03381644]
[1757614082200,2.18508937,227.34,227.29,0.03381644]
[1757614082401,7.52,227.33,227.29,0.03381644]
[1757614083306,2.18508937,227.34,227.29,0.03381644]
[1757614083504,7.52,227.33,227.29,0.03381644]
[1757614084096,7.52,227.3,227.18,4.04508937]
[1757614084304,7.52,227.27,227.18,1.86]
[1757614085202,0.02889302,227.25,227.18,1.86]
[1757614085810,0.02889302,227.25,227.19,62.0]
[1757614086205,0.02889302,227.25,227.18,1.86]
[1757614088508,0.02889302,227.25,227.19,0.44]
[1757614088908,0.02889302,227.25,227.21,0.44]
[1757614089106,0.02889302,227.25,227.22,62.0]
[1757614089309,0.02889302,227.25,227.24,0.44]
[1757614090407,0.02889302,227.25,227.18,92.9]
[1757614090408,7.52,227.24,227.18,92.9]
[1757614090915,7.52,227.24,227.2,0.44]
[1757614091414,7.54889302,227.25,227.19,0.02832231]
[1757614093813,0.02889302,227.25,227.2,2.18508937]
[1757614094915,0.02889302,227.25,227.21,0.44]
[1757614095511,0.02889302,227.25,227.2,2.18508937]
[1757614096019,0.02889302,227.25,227.21,0.44]
[1757614096710,0.02889302,227.25,227.2,2.18508937]
[1757614097223,0.02889302,227.25,227.21,0.44]
[1757614097910,0.02889302,227.25,227.2,2.18508937]
[1757614098212,0.02889302,227.25,227.24,0.44]
[1757614098610,0.02889302,227.25,227.24,0.88]
[1757614101513,0.02889302,227.25,227.24,62.88]
[1757614101913,0.02889302,227.25,227.24,62.44]
[1757614103614,0.02889302,227.25,227.24,170.9]
[1757614103821,7.52,227.34,227.24,170.46]
[1757614104021,7.52,227.34,227.28,2.18508937]
[1757614104723,7.52,227.41,227.28,2.18508937]
[1757614105021,7.52,227.41,227.31,2.18508937]
[1757614105222,295.7,227.47,227.31,16.44508937]
[1757614105420,2.18508937,227.44,227.31,16.44508937]
[1757614105817,7.52,227.43,227.31,16.44508937]
[1757614106021,2.18508937,227.45,227.32,0.41]
[1757614106321,7.52,227.44,227.32,0.41]
[1757614107118,2.18508937,227.45,227.33,62.0]
[1757614107523,6.9,227.44,227.33,62.0]